Cogmind - Beta 15 @@@ ROGUE MODE // 2025.08.20 @ 20:22:23 Player: sorc Result: Destroyed by G-34 Mercenary with Small Laser Performance ------------- Evolutions (0) 0 Regions Visited (1) 200 Robots Destroyed (19) 95 Value Destroyed (355) 355 Prototype IDs (0) 0 Alien Tech Used (0) 0 Bonus (0) 0 TOTAL SCORE: 650 Bonus ------- None Cogmind --------- Core Integrity 0/250 Matter 400/400 Energy 45/100 System Corruption 0% Temperature Warm (140) Movement Core (100) Ox1 Location -10/Materials Parts ------- > --- POWER (1) -------- (None) > --- PROPULSION (2) --- (None) > --- UTILITY (2) ------ Medium Matter Pod > --- WEAPON (2) ------- Medium Laser > --- INVENTORY (5) ---- Small Storage Unit Peak State ------------ > --- POWER ------------ Light Ion Engine > --- PROPULSION ------- Wheel Wheel > --- UTILITY ---------- Medium Matter Pod Structural Scanner > --- WEAPON ----------- Medium Laser Small Laser > --- INVENTORY -------- Small Storage Unit Medium Storage Unit [Rating: 7] Favorites ----------- Power Ion Engine Engine Ion Engine Propulsion Wheel Leg Aluminum Leg Wheel Wheel Utility Medium Matter Pod Device Structural Scanner Storage Medium Matter Pod Processor Targeting Computer Weapon Medium Laser Energy Gun Medium Laser Special Weapon Mining Laser Build | -11 -10 ------- Run | Yrd Mat Slots Evolved . | . . Power . | . . Propulsion . | . . Utility . | . . Weapon . | . . Parts Attached 12 | 6 6 Power 2 | 1 1 Engine 2 | 1 1 Core . | . . Reactor . | . . Propulsion 4 | 2 2 Treads . | . . Leg 1 | . 1 Wheel 3 | 2 1 Hover . | . . Flight . | . . Utility 3 | 1 2 Device 1 | . 1 Storage 1 | 1 . Processor 1 | . 1 Hackware . | . . Protection . | . . Artifact . | . . Weapon 3 | 2 1 Energy Gun 2 | 2 . Energy Cannon . | . . Ballistic Gun . | . . Ballistic Cannon . | . . Launcher . | . . Special Weapon 1 | . 1 Impact Weapon . | . . Slashing Weapon . | . . Piercing Weapon . | . . Special Melee Weapon . | . . Unidentified Prototypes . | . . Parts Lost 9 | . 9 Power 2 | . 2 Propulsion 4 | . 4 Utility 1 | . 1 Weapon 2 | . 2 Highest Loss Streak 4 | . 4 To Critical Strikes . | . . Average Backups 1 | . 1 Power . | . . Propulsion . | . . Utility 1 | . 1 Weapon . | . . Tool/Special . | . . Unused Backups 2 | . 2 Power . | . . Propulsion . | . . Utility 2 | . 2 Weapon . | . . Tool/Special . | . . Average Slot Usage (%) 82 | . 82 Engine 12 | . 12 Leg 1 | . 1 Wheel 18 | . 18 Device 6 | . 6 Storage 14 | . 14 Processor 2 | . 2 Energy Gun 25 | . 25 Special Weapon 1 | . 1 Peak Build Rating 7 | 6 7 Average Rating 5 | 4 5 On Entrance 3 | . 6 Naked Turns . | . . Heaviest Build 11 | 8 11 Greatest Support 20 | 20 20 Greatest Overweight (x) 3 | . 3 Average Overweight (x) . | . . Largest Inventory Capacity 5 | 5 5 Average Capacity 5 | 5 5 Most Carried 4 | 1 4 Average Carried 1 | . 2 Final Capacity 5 | 5 5 Final Carried 1 | . 1 Class Distribution -------------------- 100% | Mutant Dominant Class ---------------- Mutant | -10/Materials Resources | -11 -10 ----------- Run | Yrd Mat Matter Collected 450 | 370 80 Remotely . | . . Salvage Created 739 | 55 684 Parts 36 | 6 30 Haulers Intercepted 1 | . 1 Recyclers Shooed 1 | . 1 Parts Field Recycled . | . . Retrieved Matter . | . . Parts Self-Destructed . | . . Prevented . | . . Kills | -11 -10 ------- Run | Yrd Mat Combat Hostiles Destroyed 9 | 1 8 Guns 8 | 1 7 Classes Destroyed 5 | 2 3 Worker 5 | 1 4 Builder 2 | . 2 Hauler 1 | . 1 Recycler 2 | . 2 Grunt 9 | 1 8 Best Kill Streak 4 | 1 4 Combat Bots Only 3 | 1 3 Max Kills in Single Turn 2 | 1 2 Gunslinging . | . . Exploded . | . . Melee . | . . Uniques/NPCs Destroyed . | . . Combat | -11 -10 -------- Run | Yrd Mat Hostile Shots Fired 78 | 1 77 Missed 18 | . 18 Hits 60 | 1 59 Projectile 60 | 1 59 Damage Taken 738 | 10 728 Core 252 | . 252 Absorbed by Shields . | . . Core Remaining (%) 100 | 100 . Volleys Fired 114 | 4 110 Largest 2 | 2 2 Hottest 150 | 90 150 Shots Fired 189 | 7 182 Gun 177 | 7 170 Cannon . | . . Launcher . | . . Special 12 | . 12 Kinetic . | . . Thermal 189 | 7 182 Explosive . | . . Electromagnetic . | . . Robot Hit Streak 12 | 3 12 Robot Miss Streak 3 | . 3 Penetration Max . | . . Secondary Targets 2 | . 2 Max Gunslinging Chain 1 | . 1 Shots Hit Robots 87 | 3 84 Core Hits 33 | 3 30 Critical Kills . | . . Critical Parts Destroyed . | . . Critical Strikes 4 | 1 3 Burn 4 | 1 3 Melee Attacks . | . . Impact . | . . Slashing . | . . Piercing . | . . Sneak Attacks . | . . Combat Hostiles . | . . Follow-up Attacks . | . . Damage Inflicted 1045 | 34 1011 Guns 986 | 34 952 Cannons . | . . Explosions . | . . Melee . | . . Ramming 11 | . 11 Kinetic . | . . Thermal 1034 | 34 1000 Explosive . | . . Electromagnetic . | . . Impact . | . . Slashing . | . . Piercing . | . . Highest Corruption . | . . Average Corruption . | . . Corruption Purged . | . . Corruption Blocked . | . . Overload Shots . | . . Overflow Damage . | . . Projectiles . | . . Explosions . | . . Melee . | . . Knockbacks . | . . Impact . | . . Kinetic . | . . Secondary . | . . Self-Inflicted Damage 90 | . 90 Shots 2 | . 2 Rammed 3 | . 3 Targets Rammed 3 | . 3 Kicked . | . . Crushed . | . . Highest Temperature 388 | 60 388 Average Temperature 94 | 27 96 Received Heat Transfer 360 | 6 354 Effects 2 | . 2 Shutdowns 1 | . 1 Short Circuit 1 | . 1 Siege Activations . | . . Martial Activations . | . . Shielding Activations . | . . Robots Disrupted . | . . Combat Hostiles . | . . Robots Corrupted . | . . Combat Hostiles . | . . Parts Fried . | . . Impact Corruptions . | . . Robots Melted 1 | . 1 Combat Hostiles 1 | . 1 Parts Melted 6 | . 6 Heat Transferred 3024 | 173 2851 Parts Sabotaged . | . . Parts Stolen . | . . Parts Stripped . | . . Power Chain Reactions . | . . Alert | -11 -10 ------- Run | Yrd Mat Maximum Alert Level . | . . Low Security (%) 100 | 100 100 Level 1 . | . . Level 2 . | . . Level 3 . | . . Level 4 . | . . Level 5 . | . . High Security . | . . Max Security . | . . Peak Influence 64 | 20 64 Initial . | . . Average 14 | 5 15 Influence Increases 334 | 25 309 Destroy 0b10 Robot/C 180 | 20 160 Destroy 0b10 Robot/NC 50 | 5 45 Destroy Leader 52 | . 52 Successful Hack 22 | . 22 Disable Machine 30 | . 30 Influence Decreases 334 | 25 309 Time Decay 294 | 25 269 Lost Part 40 | . 40 Squads Dispatched 5 | . 5 Investigation 2 | . 2 Extermination . | . . Reinforcement 3 | . 3 Assault . | . . Garrison . | . . Intercept . | . . Searches Triggered . | . . Construction Impeded . | . . Haulers Reinforced . | . . Active Scanning Responses . | . . Cargo Convoy Interrupts . | . . Stealth | -11 -10 --------- Run | Yrd Mat Distress Signals . | . . Communications Jammed . | . . Distress Signals . | . . Times Spotted 15 | 1 14 Peak Tracking Total 3 | 1 3 Tactical Retreats . | . . Traps | -11 -10 ------- Run | Yrd Mat Traps Triggered 1 | . 1 Indirectly . | . . Trap Hack Attempts . | . . Triggered . | . . Disarmed . | . . Reprogrammed . | . . Reused . | . . Traps Extracted . | . . Installed . | . . Triggered . | . . Machines | -11 -10 ---------- Run | Yrd Mat Machines Disabled 2 | . 2 Max in Single Turn 1 | . 1 Machines Repaired . | . . Machines Dismantled . | . . Machines Sabotaged . | . . Overloaded Fab Kills . | . . Hacking | -11 -10 --------- Run | Yrd Mat Machines Accessed 3 | . 3 Terminals 2 | . 2 Fabricators . | . . Repair Stations . | . . Recycling Units 1 | . 1 Scanalyzers . | . . Garrison Access . | . . Total Hacks 6 | . 6 Successful 4 | . 4 Failed 2 | . 2 Catastrophic . | . . Database Lockouts . | . . Manual . | . . Terminals 5 | . 5 Fabricators . | . . Repair Stations . | . . Recycling Units 1 | . 1 Scanalyzers . | . . Garrison Access . | . . Terminal Hacks 3 | . 3 Locate Traps 1 | . 1 Maintenance Status 1 | . 1 Transport Status 1 | . 1 Fabricator Hacks . | . . Repair Station Hacks . | . . Recycling Unit Hacks 1 | . 1 Recycle Component 1 | . 1 Scanalyzer . | . . Garrison Access Hacks . | . . Unauthorized Hacks . | . . Terminals . | . . Fabricators . | . . Repair Stations . | . . Recycling Units . | . . Scanalyzers . | . . Garrison Access . | . . Data Cores Recovered . | . . Used . | . . Hacking Detections 2 | . 2 Full Trace Events 1 | . 1 Feedback Events . | . . Feedback Blocked . | . . Robot Schematics Acquired . | . . Robots Built . | . . Authchips . | . . Time . | . . Total Robot Build Rating . | . . Part Schematics Acquired . | . . Parts Built . | . . Authchips . | . . Time . | . . Total Part Build Rating . | . . Parts Repaired . | . . Time . | . . Parts Recycled 1 | . 1 Recycled Matter . | . . Retrieved Matter . | . . Retrieved Components . | . . Parts Scanalyzed . | . . Part Schematics Acquired . | . . Parts Damaged . | . . Bothacking | -11 -10 ------------ Run | Yrd Mat Used RIF Installer . | . . Robots Hacked . | . . Non-combat . | . . Combat . | . . Robot Hacks Applied . | . . Relay Couplers Released . | . . Fabnet Peak Effective % . | . . Robots Rewired . | . . Allies Hacked . | . . Hacks Repelled . | . . Allies | -11 -10 -------- Run | Yrd Mat Total Allies . | . . Largest Group . | . . Highest-Rated Group . | . . Highest-Rated Ally . | . . Total Orders . | . . Ally Attacks . | . . Total Damage . | . . Kills . | . . Allies Corrupted . | . . Allies Melted . | . . Intel | -11 -10 ------- Run | Yrd Mat Active Infowar (turns) 329 | . 329 Structural 329 | . 329 Robot Analysis Total . | . . Derelict Logs Recovered . | . . Drone Launches . | . . Drone Recoveries . | . . Exploration | -11 -10 ------------- Run | Yrd Mat Turns Passed 902 | 107 795 Spaces Moved 566 | 90 476 Core 39 | 16 23 Treads . | . . Legs 31 | . 31 Wheels 496 | 74 422 Hover . | . . Flight . | . . Fastest Speed 50 | 50 80 Average Speed 86 | 74 88 Slowest Speed 200 | 80 200 Overloaded Moves . | . . Propulsion Burnouts . | . . Robots Hopped . | . . Potential Cave-ins . | . . Cave-ins Triggered . | . . Exploration Rate (%) 31 | 10 52 Regions Visited 1 Branch Regions . Pre-discovered Areas . | . . Known Exits Taken . | . . Unknown Exits Taken 1 | 1 . Scrap Searched . | . . Spaces Dug . | . . Terrain Destroyed . | . . Melee . | . . Projectile . | . . AOE . | . . Terrain Rammed . | . . Walls Destroyed . | . . Machines Disabled . | . . Actions | -11 -10 --------- Run | Yrd Mat Total 769 | 124 645 Wait 49 | 13 36 Move 565 | 89 476 Hop . | . . Pick Up 14 | 6 8 Fast Attach . | . . Attach 17 | 9 8 Detach 5 | 3 2 Swap 1 | . 1 Drop 1 | . 1 Fire 114 | 4 110 Melee . | . . Ram 3 | . 3 Kick . | . . Crush . | . . Escape Stasis . | . . Rewire . | . . Trap . | . . Miscellaneous . | . . Route ------- -11/Scrapyard -10/Materials (discovered 2 exits: [*Mat] / [*Min]) History --------- Turn | Location | Event 2 | -11/Scrapyard | Met Revision 17 62 | -11/Scrapyard | Discovered new exit (range 8) 108 | -11/Scrapyard | Entered Materials 315 | -10/Materials | Build established: Mutant 414 | -10/Materials | Discovered new exit (range 14) 823 | -10/Materials | Discovered new exit (range 7) 867 | -10/Materials | Core integrity fell below 50% 900 | -10/Materials | Core integrity fell below 20% 903 | -10/Materials | Destroyed by G-34 Mercenary with Small Laser Last Messages --------------- Aluminum Leg melted. R-06 Scavenger collects Heat Sink. Slammed into R-06 Scavenger. Acquired 20 matter. Acquired Aluminum Leg. Acquired 10 matter. EXIT=FOUND T-07 Excavator is excavating. Triggered Alarm Trap. An alarm sounds. ALERT: Alarm triggered, dispatching investigation squad. Ion Engine destroyed. G-34 Mercenary destroyed. Switching to secondary target: G-34 Mercenary. Sml. Laser destroyed. Mining Laser destroyed. G-34 Mercenary suffers critical hit (Burn). Aluminum Leg destroyed. [Achievement: First Step to Greatness] Map ----- +----------------------------------------------------+ | ???## ### =% # ?????????????????????? | | ???### ##### [ # ?????????????????????? | | ?#####+##### # ?????????????????????? | | ?# # !%######## # """ # ????????????"?? | | ?# # % ######## ######## ???????????""?? | | ?# """" #%**##????## + ## ??? ""?? | | ?# """" # = ######## ######### ?? ""?? | | ## """" # # "T" # """ #"""""""# ? "??? | | ## + # # """ #" !" "# ??? | | ## ! # #! ] # """ #" "##+####??? | | ## #!%=# # ! ##### | | ############ = # # % < %* ##### | | ??????## # """" # %% | | ??????## + """" # #### ## ##+####### | | ??????## # """" # #### ########## !! # | | ??????###### # # #### ########## """"%""# | | ??????###### # """" # #### ?????+ """" Y"# | | ??????????## # """" # #### ####?????# """" ""# | | ??????????## # """" # ###########?????# # | | ??????????## # # ## ???????# """" =%+ | | ??????????## ######## #???????????????# """" !# | | ??????????## ##?????# #???????????????# """" # | | ??????????## ##?????# #???????????????# + | | ??????????## ##??#### ##????????????############ | | ??????????## ##??# ! ###+########## #????? | | ??????????## ##### @ g [ #????? | | ???????? " g #????? | | ???????? =%= ###### | | ??????????## ########## ### % | | ???????????###############??????? ### ####### | | ??????????? ????????????????## #?# #?????? | | ?????????????????????????????????#####?# #?????? | | ???????????????????????????????????????# #?????? | | ???????????????????????????????????????# #?????? | | ???????????????????????????????????????# < #?????? | | ???????????????????????????????????????# #?????? | | ???????????????????????????????????????#####?????? | | ?????????????????????????????????????????????????? | | ?????????????????????????????????????????????????? | | ?????????????????????????????????????????????????? | | ?????????????????????????????????????????????????? | | ?????????????????????????????????????????????????? | | ?????????????????????????????????????????????????? | | ?????????????????????????????????????????????????? | | ?????????????????????????????????????????????????? | | ?????????????????????????????????????????????????? | | ?????????????????????????????????????????????????? | | ?????????????????????????????????????????????????? | | | | | +----------------------------------------------------+ Best States ------------- Heat Dissipation 25 Energy Generation 10 Energy Capacity 250 Matter Stores 400 Matter Capacity 400 Sight Range 16 Terrain Scan Density 10 Evasion (%) 55 Targeting Accuracy 5 Item Schematics ----------------- None Robot Schematics ------------------ None Fabricated ------------ Nothing Repaired ---------- Nothing Alien Tech Used ----------------- None Achievements -------------- Crack Shot First Step to Greatness It's Just You Loot Pinata Uninvited Guest Challenges ------------ None Game ------ Seed WaveMicroPrototype Manual? 0 Play Time 00:24:01 Cumulative 0.3 hours Start 2025.08.20 @ 19:57:44 End 2025.08.20 @ 20:22:23 Sessions 1 Manual Loads 0 Difficulty Rogue Special Mode None Game No. 1 Rogue 1 Adventurer 0 Explorer 0 Win Type - Total 0 Types 0/0/0/0/0/0/0/0/0/0 Lore% 0 Gallery% 1 Achievement% 3 Wizard Run 0 Options --------- Layout 1 ASCII 0 Keyboard 0 Movement Arrows Keybinds 0 Fullscreen 1 Font 24/Smallcaps Map View 50x35 Zoom Use 1% Tactical HUD 0 Map Filters NONE Filters NONE Steam 1 RUN: 9ec376ae-b398-43ca-bb10-c129159f73e9